[Event "*** SCC Grand Prix: Titled Tuesday Blitz"]
[Site "Chess.com"]
[Date "2020.06.02"]
[Round "5"]
[White "Kaua18"]
[Black "rugbyclub"]
[Result "0-1"]
[WhiteElo "2319"]
[BlackElo "2121"]
[TimeControl "180+1"]
[EndTime "10:59:27 PDT"]
[Termination "rugbyclub won by resignation"]

1. e4 {[%clk 0:03:00]} 1... e5 {[%clk 0:02:58.7]} 2. Nf3 {[%clk 0:02:59]} 2...
Nc6 {[%clk 0:02:49.9]} 3. Bb5 {[%clk 0:02:57.1]} 3... a6 {[%clk 0:02:48.8]} 4.
Ba4 {[%clk 0:02:51.1]} 4... Nf6 {[%clk 0:02:48]} 5. O-O {[%clk 0:02:49.8]} 5...
Be7 {[%clk 0:02:47.7]} 6. Re1 {[%clk 0:02:49.5]} 6... b5 {[%clk 0:02:46.3]} 7.
Bb3 {[%clk 0:02:48.9]} 7... O-O {[%clk 0:02:46.8]} 8. a4 {[%clk 0:02:43]} 8...
b4 {[%clk 0:02:45.9]} 9. a5 {[%clk 0:02:40.2]} 9... d5 {[%clk 0:02:38.5]} 10.
exd5 {[%clk 0:02:37.5]} 10... Nxd5 {[%clk 0:02:38.3]} 11. Nxe5 {[%clk
0:02:37.6]} 11... Nxe5 {[%clk 0:02:37.9]} 12. Rxe5 {[%clk 0:02:38.5]} 12... Bb7
{[%clk 0:02:36.3]} 13. d3 {[%clk 0:02:36.8]} 13... Kh8 {[%clk 0:02:16.3]} 14.
Nd2 {[%clk 0:02:23.8]} 14... c6 {[%clk 0:02:07.9]} 15. Nf3 {[%clk 0:02:16.3]}
15... Bd6 {[%clk 0:02:07.7]} 16. Re1 {[%clk 0:02:14.1]} 16... c5 {[%clk
0:02:02.4]} 17. Bg5 {[%clk 0:02:07.5]} 17... Qc7 {[%clk 0:01:55.2]} 18. Bh4
{[%clk 0:02:07.1]} 18... Nf4 {[%clk 0:01:45.4]} 19. Bg3 {[%clk 0:02:05.2]} 19...
Rfe8 {[%clk 0:01:40.6]} 20. Qd2 {[%clk 0:01:16.6]} 20... Bxf3 {[%clk 0:01:08.7]}
21. gxf3 {[%clk 0:01:16.1]} 21... g5 {[%clk 0:00:53.9]} 22. Re4 {[%clk
0:01:05.6]} 22... Qd7 {[%clk 0:00:48.1]} 23. Qd1 {[%clk 0:01:00.7]} 23... h5
{[%clk 0:00:42.6]} 24. Qf1 {[%clk 0:00:49.6]} 24... h4 {[%clk 0:00:40.4]} 25.
Bxf4 {[%clk 0:00:49.4]} 25... Bxf4 {[%clk 0:00:40.9]} 26. Rae1 {[%clk
0:00:49.2]} 26... Kg7 {[%clk 0:00:28.4]} 27. Qg2 {[%clk 0:00:48.7]} 27... f5
{[%clk 0:00:25.7]} 28. Be6 {[%clk 0:00:41]} 28... Qd6 {[%clk 0:00:24.3]} 29.
Bxf5 {[%clk 0:00:40.5]} 29... Rxe4 {[%clk 0:00:24.2]} 30. Bxe4 {[%clk
0:00:41.4]} 30... Re8 {[%clk 0:00:23.3]} 31. h3 {[%clk 0:00:39.5]} 31... Qf6
{[%clk 0:00:21.3]} 32. Qg4 {[%clk 0:00:34.9]} 32... Re7 {[%clk 0:00:20.4]} 33.
Kg2 {[%clk 0:00:24.7]} 33... Qxb2 {[%clk 0:00:19.8]} 34. Qf5 {[%clk 0:00:24.3]}
34... Qf6 {[%clk 0:00:17.5]} 35. Qxc5 {[%clk 0:00:15.7]} 35... Bd6 {[%clk
0:00:13]} 36. Qf5 {[%clk 0:00:15.3]} 36... Qxf5 {[%clk 0:00:12]} 37. Bxf5 {[%clk
0:00:15.7]} 37... Rxe1 {[%clk 0:00:12.6]} 38. f4 {[%clk 0:00:16.2]} 38... Bxf4
{[%clk 0:00:11.2]} 39. d4 {[%clk 0:00:16.6]} 39... Rd1 {[%clk 0:00:10.6]} 40.
Bd3 {[%clk 0:00:16.9]} 40... Kf7 {[%clk 0:00:08.9]} 41. Bc4+ {[%clk 0:00:17]}
41... Ke7 {[%clk 0:00:08.7]} 42. d5 {[%clk 0:00:17.9]} 42... Kd6 {[%clk
0:00:08.6]} 43. Kf3 {[%clk 0:00:18.4]} 43... Rxd5 {[%clk 0:00:07.2]} 44. Bxa6
{[%clk 0:00:16.3]} 44... Rxa5 {[%clk 0:00:06.9]} 45. Bc4 {[%clk 0:00:16.8]}
45... Rc5 {[%clk 0:00:07]} 46. Bb3 {[%clk 0:00:17.2]} 46... Ke5 {[%clk
0:00:07.2]} 47. Kg4 {[%clk 0:00:17.3]} 47... Rc3 {[%clk 0:00:06.1]} 48. f3
{[%clk 0:00:17.7]} 48... Kd4 {[%clk 0:00:06.4]} 49. Ba4 {[%clk 0:00:17.3]} 49...
Ke3 {[%clk 0:00:05.5]} 50. Bb3 {[%clk 0:00:17.2]} 50... Kd2 {[%clk 0:00:06.2]}
51. Ba4 {[%clk 0:00:17.3]} 51... Rxc2 {[%clk 0:00:06.3]} 52. Bxc2 {[%clk
0:00:15.3]} 52... Kxc2 {[%clk 0:00:05.6]} 0-1

[Event "*** SCC Grand Prix: Titled Tuesday Blitz"]
[Site "Chess.com"]
[Date "2020.06.02"]
[Round "5"]
[White "Virgo15"]
[Black "wild_cat99"]
[Result "1-0"]
[WhiteElo "2755"]
[BlackElo "2572"]
[TimeControl "180+1"]
[EndTime "10:59:28 PDT"]
[Termination "Virgo15 won by resignation"]

1. d4 {[%clk 0:02:57.2]} 1... Nf6 {[%clk 0:02:59.2]} 2. Bf4 {[%clk 0:02:55]}
2... g6 {[%clk 0:02:58.2]} 3. Nc3 {[%clk 0:02:54.3]} 3... d5 {[%clk 0:02:54.6]}
4. Qd2 {[%clk 0:02:53.7]} 4... c6 {[%clk 0:02:41.8]} 5. Bh6 {[%clk 0:02:50]}
5... Bf5 {[%clk 0:02:31.4]} 6. Bxf8 {[%clk 0:02:49.2]} 6... Rxf8 {[%clk
0:02:32.3]} 7. f3 {[%clk 0:02:48.8]} 7... Nbd7 {[%clk 0:02:24.7]} 8. e3 {[%clk
0:02:48.6]} 8... Qc7 {[%clk 0:02:21.7]} 9. Nge2 {[%clk 0:02:48]} 9... Nb6 {[%clk
0:02:19]} 10. g4 {[%clk 0:02:45.7]} 10... Bd7 {[%clk 0:02:19]} 11. Ng3 {[%clk
0:02:41]} 11... O-O-O {[%clk 0:02:16.7]} 12. a4 {[%clk 0:02:40.3]} 12... e5
{[%clk 0:02:14.4]} 13. a5 {[%clk 0:02:38.2]} 13... Nc4 {[%clk 0:02:14.2]} 14.
Bxc4 {[%clk 0:02:37.7]} 14... dxc4 {[%clk 0:02:15.1]} 15. a6 {[%clk 0:02:25.7]}
15... b5 {[%clk 0:02:05.6]} 16. g5 {[%clk 0:01:53.1]} 16... exd4 {[%clk
0:01:43.7]} 17. Qxd4 {[%clk 0:01:46.6]} 17... Nd5 {[%clk 0:01:30.3]} 18. Nxd5
{[%clk 0:01:45.9]} 18... cxd5 {[%clk 0:01:31.2]} 19. O-O {[%clk 0:01:35.5]}
19... Bh3 {[%clk 0:01:14.3]} 20. Rfe1 {[%clk 0:01:31.8]} 20... Kb8 {[%clk
0:01:06.7]} 21. b4 {[%clk 0:01:28]} 21... Rd6 {[%clk 0:00:59.9]} 22. Ra5 {[%clk
0:01:26.9]} 22... Qc6 {[%clk 0:00:39.5]} 23. Qf4 {[%clk 0:01:23.3]} 23... Ka8
{[%clk 0:00:27.7]} 24. Rxb5 {[%clk 0:01:17]} 24... h6 {[%clk 0:00:22.5]} 25. Rc5
{[%clk 0:01:06.8]} 25... Qxa6 {[%clk 0:00:22.3]} 26. Ra5 {[%clk 0:01:05.8]}
26... Qb6 {[%clk 0:00:21.8]} 27. Rea1 {[%clk 0:01:05.7]} 27... Rd7 {[%clk
0:00:20.2]} 28. gxh6 {[%clk 0:01:03.9]} 28... f6 {[%clk 0:00:20.4]} 29. Ra6
{[%clk 0:00:57.7]} 29... g5 {[%clk 0:00:18.6]} 30. Qd4 {[%clk 0:00:47.8]} 30...
Qxd4 {[%clk 0:00:18.1]} 31. exd4 {[%clk 0:00:47.8]} 31... Rh7 {[%clk 0:00:15.9]}
32. b5 {[%clk 0:00:42.9]} 32... Bc8 {[%clk 0:00:15.9]} 33. Rd6 {[%clk
0:00:38.5]} 33... Rxh6 {[%clk 0:00:14.4]} 34. b6 {[%clk 0:00:37.8]} 34... a6
{[%clk 0:00:15]} 35. Rxd5 {[%clk 0:00:31.8]} 35... Bb7 {[%clk 0:00:15.5]} 36.
Rd7 {[%clk 0:00:31.3]} 36... Rfh8 {[%clk 0:00:15.4]} 37. Nf1 {[%clk 0:00:31]}
37... f5 {[%clk 0:00:14.4]} 38. Rb1 {[%clk 0:00:17]} 38... Bxf3 {[%clk
0:00:12.6]} 39. d5 {[%clk 0:00:15.5]} 39... Kb8 {[%clk 0:00:09.5]} 40. Rb4
{[%clk 0:00:07.4]} 40... Kc8 {[%clk 0:00:09]} 41. Rc7+ {[%clk 0:00:07.3]} 41...
Kb8 {[%clk 0:00:08.8]} 42. d6 {[%clk 0:00:07.3]} 42... Rxd6 {[%clk 0:00:07.1]}
43. Rbxc4 {[%clk 0:00:05.5]} 43... Rxb6 {[%clk 0:00:06.4]} 44. Rf7 {[%clk
0:00:05.6]} 44... Rbh6 {[%clk 0:00:06]} 45. Rxf5 {[%clk 0:00:05.6]} 45... Bb7
{[%clk 0:00:05.6]} 46. Rb4 {[%clk 0:00:06.1]} 46... g4 {[%clk 0:00:04.8]} 47.
Rf7 {[%clk 0:00:06.2]} 47... R6h7 {[%clk 0:00:04.5]} 48. Rbxb7+ {[%clk
0:00:06.4]} 48... Kc8 {[%clk 0:00:04.9]} 49. Rxh7 {[%clk 0:00:06.9]} 49... Rxh7
{[%clk 0:00:05.3]} 50. Rxh7 {[%clk 0:00:07.5]} 1-0

[Event "*** SCC Grand Prix: Titled Tuesday Blitz"]
[Site "Chess.com"]
[Date "2020.06.02"]
[Round "5"]
[White "VMikhalevski"]
[Black "Natalya_Buksa"]
[Result "1/2-1/2"]
[WhiteElo "2739"]
[BlackElo "2577"]
[TimeControl "180+1"]
[EndTime "10:59:28 PDT"]
[Termination "Game drawn by agreement"]

1. Nf3 {[%clk 0:03:00.9]} 1... d5 {[%clk 0:02:57.8]} 2. c4 {[%clk 0:02:58.9]}
2... e6 {[%clk 0:02:58.1]} 3. b3 {[%clk 0:02:57.1]} 3... Nf6 {[%clk 0:02:57.2]}
4. g3 {[%clk 0:02:56]} 4... Be7 {[%clk 0:02:55.8]} 5. Bg2 {[%clk 0:02:56.1]}
5... c5 {[%clk 0:02:56.2]} 6. O-O {[%clk 0:02:55.4]} 6... O-O {[%clk 0:02:56.7]}
7. Bb2 {[%clk 0:02:54.5]} 7... Nc6 {[%clk 0:02:57.2]} 8. e3 {[%clk 0:02:53]}
8... b6 {[%clk 0:02:56.2]} 9. Nc3 {[%clk 0:02:50.5]} 9... dxc4 {[%clk
0:02:49.3]} 10. Ne5 {[%clk 0:02:30.7]} 10... Nxe5 {[%clk 0:02:48.3]} 11. Bxa8
{[%clk 0:02:30.6]} 11... Ba6 {[%clk 0:02:34.6]} 12. Bg2 {[%clk 0:02:29.2]} 12...
cxb3 {[%clk 0:02:32.1]} 13. axb3 {[%clk 0:02:24.5]} 13... Bxf1 {[%clk
0:02:27.5]} 14. Bxf1 {[%clk 0:02:18.2]} 14... a5 {[%clk 0:02:25]} 15. Nb5 {[%clk
0:02:14.7]} 15... Nd3 {[%clk 0:02:17.7]} 16. Bc3 {[%clk 0:02:10.5]} 16... Ne4
{[%clk 0:02:08.8]} 17. f4 {[%clk 0:02:07.8]} 17... Bf6 {[%clk 0:01:52.4]} 18.
Qc2 {[%clk 0:02:04.3]} 18... Nxc3 {[%clk 0:01:46.7]} 19. dxc3 {[%clk 0:02:00.8]}
19... Nb4 {[%clk 0:01:17]} 20. Qc1 {[%clk 0:01:51.8]} 20... Nd5 {[%clk
0:01:06.2]} 21. e4 {[%clk 0:01:49.4]} 21... Nxc3 {[%clk 0:00:57.7]} 22. e5
{[%clk 0:01:40.2]} 22... Nxb5 {[%clk 0:00:56.7]} 23. Bxb5 {[%clk 0:01:40.1]}
23... Qd4+ {[%clk 0:00:56]} 24. Kg2 {[%clk 0:01:34.1]} 24... Be7 {[%clk
0:00:56.3]} 25. Ra2 {[%clk 0:01:32]} 25... Rd8 {[%clk 0:00:56]} 26. Re2 {[%clk
0:01:24.9]} 26... h5 {[%clk 0:00:47.9]} 27. h4 {[%clk 0:01:19.6]} 27... Qd1
{[%clk 0:00:46.8]} 28. Qxd1 {[%clk 0:01:15.2]} 28... Rxd1 {[%clk 0:00:46.3]} 29.
Kf3 {[%clk 0:01:13.3]} 29... Kf8 {[%clk 0:00:46]} 30. Re3 {[%clk 0:01:12.6]}
30... Bd8 {[%clk 0:00:39.5]} 31. Rd3 {[%clk 0:01:11.9]} 31... Rxd3+ {[%clk
0:00:38.9]} 32. Bxd3 {[%clk 0:01:12.1]} 32... Ke7 {[%clk 0:00:38.4]} 33. Bb5
{[%clk 0:01:11.8]} 33... f6 {[%clk 0:00:36.7]} 34. Ke4 {[%clk 0:01:11.4]} 34...
Bc7 {[%clk 0:00:34.5]} 35. Bc4 {[%clk 0:01:09.3]} 35... fxe5 {[%clk 0:00:34]}
36. fxe5 {[%clk 0:01:08.8]} 36... Bd8 {[%clk 0:00:34.2]} 37. Bb5 {[%clk
0:01:08]} 37... Kf7 {[%clk 0:00:34.6]} 38. Kf4 {[%clk 0:01:07.5]} 38... Be7
{[%clk 0:00:34.2]} 39. Bc4 {[%clk 0:01:06.9]} 39... Bf8 {[%clk 0:00:31.4]} 40.
Bb5 {[%clk 0:01:05.5]} 40... Be7 {[%clk 0:00:30.8]} 41. Bc4 {[%clk 0:01:05.3]}
41... Bd8 {[%clk 0:00:29.6]} 42. Bd3 {[%clk 0:01:03.8]} 42... Ke7 {[%clk
0:00:18.4]} 43. Bb5 {[%clk 0:01:02.7]} 43... Bc7 {[%clk 0:00:18.5]} 44. Ke4
{[%clk 0:01:01.1]} 44... Bb8 {[%clk 0:00:18.5]} 45. Kf4 {[%clk 0:01:00.5]} 45...
Bc7 {[%clk 0:00:17.1]} 46. Ke4 {[%clk 0:01:00.3]} 46... Bd8 {[%clk 0:00:17.4]}
47. Kf4 {[%clk 0:01:00.1]} 47... Kf7 {[%clk 0:00:18]} 48. Be2 {[%clk 0:00:58.5]}
48... g6 {[%clk 0:00:18.2]} 49. Bc4 {[%clk 0:00:57.2]} 49... Be7 {[%clk
0:00:18.5]} 50. Be2 {[%clk 0:00:56.1]} 50... c4 {[%clk 0:00:18.2]} 51. Bxc4
{[%clk 0:00:55.7]} 51... Bb4 {[%clk 0:00:18.6]} 52. Bd3 {[%clk 0:00:53.7]} 52...
Bd2+ {[%clk 0:00:18.9]} 53. Kf3 {[%clk 0:00:53.7]} 53... g5 {[%clk 0:00:17.7]}
54. hxg5 {[%clk 0:00:52.6]} 54... Bxg5 {[%clk 0:00:18.6]} 55. Bc4 {[%clk
0:00:51.8]} 55... Ke7 {[%clk 0:00:17.7]} 56. Ke4 {[%clk 0:00:51.1]} 56... Bd2
{[%clk 0:00:16.8]} 57. Kf3 {[%clk 0:00:50.4]} 57... Be1 {[%clk 0:00:17.2]} 58.
Bb5 {[%clk 0:00:49.6]} 58... Kd8 {[%clk 0:00:17.1]} 59. Bc4 {[%clk 0:00:48.8]}
59... Kd7 {[%clk 0:00:17.6]} 60. Bb5+ {[%clk 0:00:49]} 60... Ke7 {[%clk
0:00:17.5]} 61. Bc4 {[%clk 0:00:49.1]} 61... Bc3 {[%clk 0:00:17.2]} 62. Ke4
{[%clk 0:00:48.3]} 62... Bd2 {[%clk 0:00:18.1]} 63. Bb5 {[%clk 0:00:47.1]} 63...
Bg5 {[%clk 0:00:15.3]} 64. Be2 {[%clk 0:00:45.5]} 64... h4 {[%clk 0:00:12.2]}
65. gxh4 {[%clk 0:00:45.2]} 65... Bxh4 {[%clk 0:00:13.1]} 66. Bb5 {[%clk
0:00:45]} 66... Be1 {[%clk 0:00:11.6]} 67. Bc4 {[%clk 0:00:44.4]} 67... Bc3
{[%clk 0:00:12]} 68. Bb5 {[%clk 0:00:44.2]} 68... Kd8 {[%clk 0:00:11.8]} 69. Bc4
{[%clk 0:00:43.8]} 69... Kd7 {[%clk 0:00:12.7]} 70. Bb5+ {[%clk 0:00:43.9]}
70... Ke7 {[%clk 0:00:12.8]} 71. Bc4 {[%clk 0:00:43.9]} 71... Bb2 {[%clk
0:00:13.3]} 72. Bb5 {[%clk 0:00:43.9]} 72... Kf7 {[%clk 0:00:08.8]} 1/2-1/2

[Event "*** SCC Grand Prix: Titled Tuesday Blitz"]
[Site "Chess.com"]
[Date "2020.06.02"]
[Round "5"]
[White "Konovalova_Vera"]
[Black "NefeLV"]
[Result "0-1"]
[WhiteElo "2144"]
[BlackElo "1773"]
[TimeControl "180+1"]
[EndTime "10:59:29 PDT"]
[Termination "NefeLV won on time"]

1. d4 {[%clk 0:03:00.9]} 1... Nf6 {[%clk 0:02:58.6]} 2. Nf3 {[%clk 0:03:00.9]}
2... g6 {[%clk 0:02:58.5]} 3. e3 {[%clk 0:03:00.5]} 3... Bg7 {[%clk 0:02:59.4]}
4. Bd3 {[%clk 0:03:00.2]} 4... O-O {[%clk 0:02:58.6]} 5. b3 {[%clk 0:03:00.3]}
5... c5 {[%clk 0:02:56.9]} 6. Bb2 {[%clk 0:03:00.5]} 6... cxd4 {[%clk
0:02:56.8]} 7. exd4 {[%clk 0:02:59.7]} 7... Nc6 {[%clk 0:02:57.7]} 8. Nbd2
{[%clk 0:02:59.4]} 8... d5 {[%clk 0:02:56.9]} 9. O-O {[%clk 0:02:58.9]} 9... Bg4
{[%clk 0:02:53.9]} 10. h3 {[%clk 0:02:57.5]} 10... Bd7 {[%clk 0:02:53.5]} 11.
Re1 {[%clk 0:02:43.6]} 11... Rc8 {[%clk 0:02:50.8]} 12. c4 {[%clk 0:02:41]}
12... dxc4 {[%clk 0:02:42.8]} 13. bxc4 {[%clk 0:02:40]} 13... Nb4 {[%clk
0:02:40.8]} 14. Be2 {[%clk 0:02:32.7]} 14... Bf5 {[%clk 0:02:35.7]} 15. Rc1
{[%clk 0:02:09.7]} 15... Nxa2 {[%clk 0:02:32.4]} 16. Ra1 {[%clk 0:02:09.2]}
16... Nb4 {[%clk 0:02:28.2]} 17. Rxa7 {[%clk 0:02:08.1]} 17... Qb6 {[%clk
0:02:17.4]} 18. Qa4 {[%clk 0:02:03.5]} 18... Nc2 {[%clk 0:01:50.2]} 19. Rb1
{[%clk 0:01:51.1]} 19... Rfd8 {[%clk 0:01:35.2]} 20. Bc3 {[%clk 0:01:35.1]}
20... Qe6 {[%clk 0:01:27.8]} 21. Bd1 {[%clk 0:01:13.9]} 21... Ne4 {[%clk
0:01:12.9]} 22. Nxe4 {[%clk 0:01:06.2]} 22... Bxe4 {[%clk 0:01:06.9]} 23. Bxc2
{[%clk 0:01:02.6]} 23... Bxf3 {[%clk 0:01:03.4]} 24. gxf3 {[%clk 0:01:01]} 24...
Rxc4 {[%clk 0:00:56.2]} 25. Bb4 {[%clk 0:00:38.8]} 25... Bxd4 {[%clk 0:00:36.4]}
26. Ra8 {[%clk 0:00:34.2]} 26... Rxa8 {[%clk 0:00:27.4]} 27. Qxa8+ {[%clk
0:00:33.4]} 27... Kg7 {[%clk 0:00:28.3]} 28. Bb3 {[%clk 0:00:27.8]} 28... Qe2
{[%clk 0:00:27.2]} 29. Be1 {[%clk 0:00:20.3]} 29... Rc5 {[%clk 0:00:22.6]} 30.
h4 {[%clk 0:00:14.2]} 30... Qxf3 {[%clk 0:00:21.9]} 31. Qe8 {[%clk 0:00:10.9]}
31... Rh5 {[%clk 0:00:19.9]} 32. Qxf7+ {[%clk 0:00:10.3]} 32... Qxf7 {[%clk
0:00:19]} 33. Bxf7 {[%clk 0:00:10.6]} 33... Kxf7 {[%clk 0:00:19.9]} 34. Rxb7
{[%clk 0:00:10.5]} 34... Rxh4 {[%clk 0:00:19.5]} 35. Bb4 {[%clk 0:00:08.3]}
35... Bxf2+ {[%clk 0:00:18]} 36. Kxf2 {[%clk 0:00:08.2]} 36... Rf4+ {[%clk
0:00:17.9]} 37. Ke3 {[%clk 0:00:08]} 37... Rf1 {[%clk 0:00:16.8]} 38. Rxe7+
{[%clk 0:00:06.6]} 38... Kf6 {[%clk 0:00:16]} 39. Rxh7 {[%clk 0:00:06.2]} 39...
g5 {[%clk 0:00:14.3]} 40. Bc3+ {[%clk 0:00:05.5]} 40... Kg6 {[%clk 0:00:13.2]}
41. Rh8 {[%clk 0:00:04.7]} 41... g4 {[%clk 0:00:12.6]} 42. Rg8+ {[%clk
0:00:04.2]} 42... Kh5 {[%clk 0:00:12.6]} 43. Ke2 {[%clk 0:00:03.9]} 43... Rf3
{[%clk 0:00:11.7]} 44. Be5 {[%clk 0:00:03.3]} 44... Rf7 {[%clk 0:00:10.7]} 45.
Rh8+ {[%clk 0:00:03]} 45... Kg5 {[%clk 0:00:10.4]} 46. Rg8+ {[%clk 0:00:03.2]}
46... Kh5 {[%clk 0:00:10.6]} 47. Bg3 {[%clk 0:00:03.2]} 47... Rf3 {[%clk
0:00:09.6]} 48. Bf2 {[%clk 0:00:03.1]} 48... Rf5 {[%clk 0:00:08.5]} 49. Rh8+
{[%clk 0:00:02.5]} 49... Kg5 {[%clk 0:00:07.9]} 50. Bh4+ {[%clk 0:00:02.5]}
50... Kf4 {[%clk 0:00:07.4]} 51. Rg8 {[%clk 0:00:01.7]} 51... Re5+ {[%clk
0:00:06.9]} 52. Kf2 {[%clk 0:00:01.8]} 52... Rb5 {[%clk 0:00:05.9]} 53. Bg3+
{[%clk 0:00:01.6]} 53... Kf5 {[%clk 0:00:05]} 54. Rf8+ {[%clk 0:00:01.5]} 54...
Kg5 {[%clk 0:00:03.4]} 0-1

[Event "*** SCC Grand Prix: Titled Tuesday Blitz"]
[Site "Chess.com"]
[Date "2020.06.02"]
[Round "5"]
[White "oneshot007"]
[Black "Mazetovic"]
[Result "0-1"]
[WhiteElo "2421"]
[BlackElo "2641"]
[TimeControl "180+1"]
[EndTime "10:59:30 PDT"]
[Termination "Mazetovic won on time"]

1. e4 {[%clk 0:03:00.9]} 1... c5 {[%clk 0:02:59.9]} 2. Nf3 {[%clk 0:03:00.4]}
2... Nc6 {[%clk 0:02:59.2]} 3. d4 {[%clk 0:03:00]} 3... cxd4 {[%clk 0:02:59.5]}
4. Nxd4 {[%clk 0:03:00.9]} 4... g6 {[%clk 0:03:00.1]} 5. Nc3 {[%clk 0:02:59.9]}
5... Bg7 {[%clk 0:03:00.7]} 6. Be3 {[%clk 0:02:57.4]} 6... Nf6 {[%clk
0:03:00.6]} 7. Bc4 {[%clk 0:02:56.1]} 7... Qa5 {[%clk 0:03:00.3]} 8. O-O {[%clk
0:02:51.5]} 8... O-O {[%clk 0:02:59.9]} 9. Nb3 {[%clk 0:02:46.6]} 9... Qc7
{[%clk 0:02:59.1]} 10. f4 {[%clk 0:02:42.4]} 10... d6 {[%clk 0:02:58.8]} 11. Be2
{[%clk 0:02:38.5]} 11... Rd8 {[%clk 0:02:55.6]} 12. Bf3 {[%clk 0:02:35.8]} 12...
e5 {[%clk 0:02:54.6]} 13. Qe1 {[%clk 0:02:22.5]} 13... exf4 {[%clk 0:02:47]} 14.
Bxf4 {[%clk 0:02:23.4]} 14... Ne5 {[%clk 0:02:46.1]} 15. Qh4 {[%clk 0:02:20.1]}
15... Be6 {[%clk 0:02:25.3]} 16. Bg5 {[%clk 0:02:12.6]} 16... Nfd7 {[%clk
0:02:22.3]} 17. Bxd8 {[%clk 0:02:09.2]} 17... Rxd8 {[%clk 0:02:22]} 18. Kh1
{[%clk 0:02:06.9]} 18... a6 {[%clk 0:02:20]} 19. Nd4 {[%clk 0:02:04]} 19... Nc5
{[%clk 0:02:11.8]} 20. Rad1 {[%clk 0:01:57.9]} 20... Re8 {[%clk 0:02:08.4]} 21.
Nxe6 {[%clk 0:01:54.2]} 21... fxe6 {[%clk 0:02:08]} 22. h3 {[%clk 0:01:51.4]}
22... b5 {[%clk 0:02:07.5]} 23. a3 {[%clk 0:01:48.9]} 23... Nc4 {[%clk
0:02:07.1]} 24. Rde1 {[%clk 0:01:24.2]} 24... Be5 {[%clk 0:01:55.6]} 25. Nd1
{[%clk 0:01:16.9]} 25... Nxb2 {[%clk 0:01:42.8]} 26. Nxb2 {[%clk 0:01:14.1]}
26... Bxb2 {[%clk 0:01:43]} 27. Be2 {[%clk 0:00:51]} 27... Be5 {[%clk
0:01:38.4]} 28. c4 {[%clk 0:00:46]} 28... Qa5 {[%clk 0:00:48.6]} 29. cxb5 {[%clk
0:00:42.9]} 29... axb5 {[%clk 0:00:48.6]} 30. Rb1 {[%clk 0:00:42]} 30... Qxa3
{[%clk 0:00:47.9]} 31. Bxb5 {[%clk 0:00:39.2]} 31... Ra8 {[%clk 0:00:38.9]} 32.
Bc6 {[%clk 0:00:36.1]} 32... Rc8 {[%clk 0:00:32.7]} 33. Rf3 {[%clk 0:00:30.2]}
33... Qa7 {[%clk 0:00:32.1]} 34. Rbf1 {[%clk 0:00:24]} 34... Qg7 {[%clk
0:00:29.1]} 35. Qf2 {[%clk 0:00:19.4]} 35... Qh6 {[%clk 0:00:15.3]} 36. Rf7
{[%clk 0:00:17.1]} 36... Nd3 {[%clk 0:00:15.3]} 37. Qa7 {[%clk 0:00:10.6]} 37...
Nf4 {[%clk 0:00:14.6]} 38. Qd7 {[%clk 0:00:08.3]} 38... Rf8 {[%clk 0:00:13.6]}
39. Rxf8+ {[%clk 0:00:06.6]} 39... Qxf8 {[%clk 0:00:13.5]} 40. g3 {[%clk
0:00:06.2]} 40... Qh6 {[%clk 0:00:13.7]} 41. gxf4 {[%clk 0:00:06.3]} 41... Qxh3+
{[%clk 0:00:13.8]} 42. Kg1 {[%clk 0:00:06.7]} 42... Bd4+ {[%clk 0:00:14.2]} 43.
Rf2 {[%clk 0:00:06.4]} 43... Qg3+ {[%clk 0:00:14]} 44. Kh1 {[%clk 0:00:06.8]}
44... Qh4+ {[%clk 0:00:14.4]} 45. Kg2 {[%clk 0:00:06.6]} 45... Qxf2+ {[%clk
0:00:14.4]} 46. Kh3 {[%clk 0:00:07.1]} 46... Qf3+ {[%clk 0:00:14.8]} 47. Kh2
{[%clk 0:00:07.3]} 47... Qxf4+ {[%clk 0:00:14.7]} 48. Kg2 {[%clk 0:00:07.2]}
48... Qg5+ {[%clk 0:00:12.5]} 49. Kh3 {[%clk 0:00:07.3]} 49... Be5 {[%clk
0:00:12]} 50. Qxe6+ {[%clk 0:00:06.6]} 50... Kg7 {[%clk 0:00:12.3]} 51. Qd7+
{[%clk 0:00:06.6]} 51... Kh6 {[%clk 0:00:12.5]} 52. Qg4 {[%clk 0:00:06.6]} 52...
Qe3+ {[%clk 0:00:12.1]} 53. Kg2 {[%clk 0:00:07]} 53... Qd2+ {[%clk 0:00:11.9]}
54. Kf3 {[%clk 0:00:02.9]} 54... Qc3+ {[%clk 0:00:12.2]} 55. Ke2 {[%clk
0:00:03.3]} 55... Qxc6 {[%clk 0:00:12.5]} 56. Qh4+ {[%clk 0:00:03.5]} 56... Kg7
{[%clk 0:00:11.8]} 57. Qe7+ {[%clk 0:00:04.1]} 57... Kg8 {[%clk 0:00:12.2]} 58.
Qd8+ {[%clk 0:00:04.4]} 58... Kf7 {[%clk 0:00:12.6]} 0-1